fUSD/lending_fUSD_20241208
["ID","MTS","AMOUNT","RATE_DAILY","PERIOD"]
[344626594,1733635843903,-500.0,0.00022999,2]
[344626595,1733635843912,-500.0,0.00022999,2]
[344626596,1733635843922,-500.0,0.00022999,2]
[344626597,1733635843931,-321.18,0.00022999,2]
[344626598,1733635843940,-418.77900344,0.00022999,2]
[344626599,1733635843953,-81.22099656,0.00022999,2]
[344626600,1733635843962,-246.17513784,0.00022999,2]
[344626601,1733635844140,-284.56486216,0.00022999,2]
[344626602,1733635844150,-500.0,0.00022999,2]
[344626603,1733635844159,-500.0,0.00022999,2]
[344626604,1733635844168,-500.0,0.00022999,2]
[344626605,1733635844177,-500.0,0.00022999,2]
[344626606,1733635844187,-500.0,0.00022999,2]
[344626607,1733635844196,-284.17513722,0.00022999,2]
[344626608,1733635844208,-215.82486278,0.00022999,2]
[344626609,1733635844217,-500.0,0.00022999,2]
[344626610,1733635844227,-500.0,0.00022999,2]
[344626611,1733635844235,-500.0,0.00022999,2]
[344626612,1733635844245,-500.0,0.00022999,2]
[344626613,1733635844254,-500.0,0.00022999,2]
[344626614,1733635844263,-500.0,0.00022999,2]
[344626615,1733635844275,-500.0,0.00022999,2]
[344626616,1733635844284,-500.0,0.00022999,2]
[344626617,1733635844293,-500.0,0.00022999,2]
[344626618,1733635844302,-500.0,0.00022999,2]
[344626619,1733635844311,-500.0,0.00022999,2]
[344626620,1733635844321,-500.0,0.00022999,2]
[344626621,1733635844330,-500.0,0.00022999,2]
[344626622,1733635844339,-500.0,0.00022999,2]
[344626623,1733635844348,-1041.0,0.00023,2]
[344626624,1733635844357,-2230.24237764,0.00023,3]
[344626625,1733635844368,-524.27346429,0.00023,3]
[344626627,1733635845551,-278.21783,0.00018397,2]
[344626628,1733635845561,-331.97952718,0.00022999,10]
[344626629,1733635845838,-295.8744,0.00022999,10]
[344626630,1733635845900,-571.32147808,0.00022999,10]
[344626631,1733635845910,-205.43686745,0.00022999,10]
[344626632,1733635845920,-1738.06825348,0.00023,3]
[344626645,1733637032180,-450.0,0.00013,2]
[344626646,1733637032191,-1534.61657966,0.00014955,2]
[344626647,1733637032352,-841.04021751,0.00014955,2]
[344626648,1733637032363,-4785.13799909,0.00014955,2]
[344626649,1733637032376,-2632.7162876,0.00014955,2]
[344626650,1733637032395,-214.37162824,0.00014956,2]
[344626651,1733637032416,-1781.74259788,0.00014956,2]
[344626652,1733637032429,-903.3602772,0.00014956,2]
[344626653,1733637032439,-200.0,0.00014956,2]
[344626654,1733637032451,-285.82883765,0.00014957,2]
[344626655,1733637032465,-677.520208,0.00014957,2]
[344626656,1733637032479,-200.0,0.00014958,2]
[344626657,1733637032494,-2375.65679717,0.00014958,2]
[344626658,1733637032507,-200.0,0.00014959,2]
[344626659,1733637032520,-381.105117,0.00014959,2]
[344626660,1733637032533,-1204.4803696,0.0001496,2]
[344626661,1733637032545,-200.0,0.0001496,2]
[344626662,1733637032557,-200.0,0.0001496,2]
[344626663,1733637032569,-1781.74259788,0.0001496,2]
[344626664,1733637032580,-5359.51208178,0.0001496,2]
[344626666,1733637032603,-203.87863323,0.0001496,2]
[344626669,1733637032615,-247.63641552,0.0001496,2]
[344626721,1733637037668,-3924.90662074,0.0001496,2]
[344626722,1733637037680,-1781.74259788,0.0001496,2]
[344626723,1733637037692,-903.3602772,0.0001496,2]
[344626724,1733637037704,-200.0,0.00014961,2]
[344626725,1733637037715,-381.105117,0.00014961,2]
[344626726,1733637037726,-200.0,0.00014961,2]
[344626727,1733637037737,-200.0,0.00014962,2]
[344626728,1733637037747,-1781.74259788,0.00014962,2]
[344626729,1733637037759,-200.0,0.00014963,2]
[344626730,1733637037769,-1317.88394134,0.00014963,2]
[344626731,1733637037782,-1518.25107678,0.00014963,2]
[344626732,1733637037795,-662.51303353,0.00014963,2]
[344626733,1733637037808,-2064.74266336,0.00014963,2]
[344626734,1733637037819,-903.3602772,0.00014963,2]
[344626735,1733637037829,-200.0,0.00014963,2]
[344626736,1733637037840,-677.520208,0.00014963,2]
[344626737,1733637037850,-3167.54239623,0.00014963,2]
[344626738,1733637037861,-200.0,0.00014963,2]
[344626739,1733637037871,-746.27388997,0.00014963,2]
[344626740,1733637037884,-2421.26850626,0.00014963,2]
[344626741,1733637037898,-200.0,0.00014964,2]
[344626742,1733637037909,-903.3602772,0.00014964,2]
[344626743,1733637037919,-5563.39071501,0.00014964,2]
[344626744,1733637037930,-508.140156,0.00014965,2]
[344626745,1733637037940,-1204.4803696,0.00014965,2]
[344626746,1733637037951,-200.0,0.00014966,2]
[344626747,1733637037962,-200.0,0.00014967,2]
[344626750,1733637037975,-285.82883765,0.00014967,2]
[344626752,1733637037985,-214.37162824,0.00014968,2]
[344626754,1733637037996,-200.0,0.00014968,2]
[344626755,1733637038007,-508.140156,0.00014969,2]
[344626756,1733637038019,-200.0,0.00014969,2]
[344626757,1733637038030,-508.140156,0.0001497,2]
[344626758,1733637038042,-1781.74259788,0.0001497,2]
[344626759,1733637038053,-200.0,0.00014971,2]
[344626760,1733637038064,-200.0,0.00014971,2]
[344626761,1733637038075,-3167.54239623,0.00014972,2]
[344626763,1733637038087,-903.3602772,0.00014972,2]
[344626765,1733637038097,-200.0,0.00014972,2]
[344626767,1733637038108,-200.0,0.00014974,2]
[344626768,1733637038119,-200.0,0.00014974,2]
[344626769,1733637038130,-381.105117,0.00014974,2]
[344626770,1733637038143,-200.0,0.00014975,2]
[344626771,1733637038153,-200.0,0.00014975,2]
[344626772,1733637038163,-4172.54303626,0.00014975,2]
[344626773,1733637038175,-200.0,0.00014976,2]
[344626774,1733637038187,-200.0,0.00014976,2]
[344626775,1733637038197,-508.140156,0.00014976,2]
[344626776,1733637038208,-7417.85428669,0.00014977,2]
[344626777,1733637038219,-200.0,0.00014977,2]
[344626778,1733637038231,-7417.85428669,0.00014978,2]
[344626779,1733637038241,-903.3602772,0.00014978,2]
[344626780,1733637038252,-677.520208,0.00014978,2]
[344626781,1733637038264,-200.0,0.00014978,2]
[344626782,1733637038274,-4172.54303626,0.00014978,2]
[344626783,1733637038286,-200.0,0.00014979,2]
[344626784,1733637038297,-5563.39071501,0.00014979,2]
[344626785,1733637038307,-5563.39071501,0.00014979,2]
[344626786,1733637038319,-677.520208,0.0001498,2]
[344626787,1733637038330,-200.0,0.0001498,2]
[344626788,1733637038340,-200.0,0.00014981,2]
[344626789,1733637038351,-200.0,0.00014982,2]
[344626790,1733637038362,-1204.4803696,0.00014982,2]
[344626791,1733637038373,-200.0,0.00014983,2]
[344626792,1733637038383,-2375.65679717,0.00014983,2]
[344626793,1733637038396,-200.0,0.00014983,2]
[344626794,1733637038411,-1204.4803696,0.00014983,2]
[344626795,1733637038421,-381.105117,0.00014984,2]
[344626796,1733637038432,-381.105117,0.00014984,2]
[344626797,1733637038443,-1781.74259788,0.00014985,2]
[344626798,1733637038454,-285.82883765,0.00014985,2]
[344626799,1733637038464,-381.105117,0.00014985,2]
[344626800,1733637038475,-214.37162824,0.00014985,2]
[344626801,1733637038487,-508.140156,0.00014986,2]
[344626802,1733637038499,-4172.54303626,0.00014986,2]
[344626803,1733637038510,-214.37162824,0.00014987,2]
[344626804,1733637038521,-200.0,0.00014987,2]
[344626805,1733637038532,-285.82883765,0.00014987,2]
[344626806,1733637038544,-3167.54239623,0.00014988,2]
[344626807,1733637038555,-200.0,0.00014988,2]
[344626808,1733637038566,-200.0,0.00014989,2]
[344626809,1733637038578,-2375.65679717,0.00014989,2]
[344626810,1733637038589,-7417.85428669,0.0001499,2]
[344626811,1733637038599,-677.520208,0.0001499,2]
[344626812,1733637038611,-3167.54239623,0.00014991,2]
[344626813,1733637038620,-2375.65679717,0.00014991,2]
[344626814,1733637038631,-200.0,0.00014991,2]
[344626815,1733637038643,-677.520208,0.00014991,2]
[344626816,1733637038654,-200.0,0.00014992,2]
[344626817,1733637038665,-200.0,0.00014992,2]
[344626818,1733637038675,-200.0,0.00014992,2]
[344626819,1733637038686,-1204.4803696,0.00014993,2]
[344626820,1733637038697,-200.0,0.00014993,2]
[344626821,1733637038708,-200.0,0.00014993,2]
[344626822,1733637038718,-285.82883765,0.00014993,2]
[344626823,1733637038729,-4172.54303626,0.00014993,2]
[344626824,1733637038975,-214.37162824,0.00014993,2]
[344626825,1733637038987,-214.37162824,0.00014994,2]
[344626826,1733637038996,-200.0,0.00014994,2]
[344626827,1733637039005,-3167.54239623,0.00014995,2]
[344626828,1733637039015,-200.0,0.00014995,2]
[344626829,1733637039024,-200.0,0.00014995,2]
[344626830,1733637039033,-200.0,0.00014995,2]
[344626831,1733637039042,-4172.54303626,0.00014996,2]
[344626832,1733637039052,-285.82883765,0.00014996,2]
[344626833,1733637039061,-7417.85428669,0.00014996,2]
[344626834,1733637039070,-2375.65679717,0.00014997,2]
[344626835,1733637039080,-200.0,0.00014997,2]
[344626836,1733637039090,-5563.39071501,0.00014998,2]
[344626837,1733637039100,-508.140156,0.00014998,2]
[344626838,1733637039109,-7417.85428669,0.00014999,2]
[344626839,1733637039119,-200.0,0.00014999,2]
[344626840,1733637039128,-1204.4803696,0.00014999,2]
[344626841,1733637039140,-200.0,0.00014999,2]
[344626842,1733637039149,-200.0,0.00014999,2]
[344626843,1733637039159,-200.0,0.00014999,2]
[344626844,1733637039169,-500.0,0.00015,2]
[344626845,1733637039179,-150.0,0.00016816,2]
[344626846,1733637039189,-152.09,0.00016956,2]
[344626847,1733637039199,-550.0,0.00017,2]
[344626848,1733637039208,-600.0,0.00019,2]
[344626849,1733637039218,-154.45,0.00019181,2]
[344626850,1733637039228,-152.09,0.00019782,2]
[344626851,1733637039238,-183.11,0.0002,2]
[344626852,1733637039252,-164.82,0.00020957,2]
[344626853,1733637039262,-527.75,0.00020963,2]
[344626854,1733637039272,-300.0,0.00020986,2]
[344626855,1733637039282,-4631.747545,0.00020987,2]
[344626856,1733637039328,-2226.75220102,0.00020987,2]
[344626857,1733637039341,-17041.50025398,0.00020987,2]
[344626858,1733637039351,-650.0,0.00021,2]
[344626859,1733637039361,-104.91942714,0.00021025,2]
[344626860,1733637039700,-45.76057286,0.00021025,2]
[344626861,1733637039710,-200.0,0.00021032,2]
[344626862,1733637039720,-593.54,0.0002104,2]
[344626863,1733637039730,-500.0,0.00021041,2]
[344626864,1733637039740,-1116.69,0.00021048,2]
[344626865,1733637039750,-427.11,0.00021074,2]
[344626866,1733637039759,-1088.28082717,0.00021079,2]
[344626867,1733637039771,-411.71917283,0.00021079,2]
[344626868,1733637039780,-329.71,0.00021101,3]
[344626869,1733637039790,-250.0,0.00021102,2]
[344626870,1733637039799,-687.58,0.0002115,30]
[344626871,1733637039808,-150.0,0.00021178,2]
[344626872,1733637039818,-352.93,0.00021197,2]
[344626873,1733637039828,-2117.0,0.000212,3]
[344626874,1733637039838,-433.68,0.00021208,2]
[344626875,1733637039848,-1000.0,0.00021228,2]
[344626876,1733637039857,-250.0,0.00021281,2]
[344626877,1733637039867,-150.99,0.00021317,2]
[344626878,1733637039877,-9787.01,0.00021335,2]
[344626879,1733637039888,-150.49,0.00021355,2]
[344626880,1733637039900,-150.36,0.0002137,2]
[344626881,1733637039909,-983.98,0.0002137,2]
[344626882,1733637039919,-150.52,0.0002137,2]
[344626883,1733637039928,-364.25,0.0002137,2]
[344626884,1733637039937,-150.0,0.0002137,2]
[344626885,1733637039947,-974.56,0.0002137,2]
[344626886,1733637039956,-364.25,0.0002137,2]
[344626887,1733637039965,-300.0,0.00021376,2]
[344626888,1733637039975,-400.13,0.00021415,2]
[344626889,1733637039984,-250.0,0.00021474,2]
[344626890,1733637039993,-179.278,0.0002185,2]
[344626891,1733637040002,-25614.36,0.0002185,2]
[344626892,1733637040012,-600.0,0.000219,7]
[344626893,1733637040021,-3900.53,0.00021918,2]
[344626894,1733637040030,-780.1,0.00021918,2]
[344626895,1733637040039,-352.93,0.00021981,2]
[344626897,1733637040048,-433.68,0.00021993,2]
[344626898,1733637040057,-1200.0,0.00022,8]
[344626899,1733637040066,-768.05,0.00022041,2]
[344626900,1733637040075,-154.45,0.00022048,2]
[344626901,1733637040084,-1800.0,0.000221,8]
[344626902,1733637040093,-150.0,0.00022192,2]
[344626903,1733637040103,-364.25,0.00022192,2]
[344626904,1733637040112,-974.56,0.00022192,2]
[344626905,1733637040122,-364.25,0.00022192,2]
[344626906,1733637040132,-364.25,0.00022192,2]
[344626907,1733637040142,-719.57,0.00022192,2]
[344626908,1733637040152,-2500.0,0.000222,8]
[344626909,1733637040161,-3100.0,0.000223,8]
[344626910,1733637040170,-600.0,0.000224,8]
[344626911,1733637040179,-7169.10891714,0.000225,5]
[344626912,1733637040188,-600.0,0.000225,8]
[344626913,1733637040197,-284.1408894,0.0002254,2]
[344626914,1733637040206,-3018.559,0.00022599,2]
[344626915,1733637040215,-180.10739639,0.00022599,2]
[344626916,1733637040225,-600.0,0.000226,8]
[344626917,1733637040234,-152.09,0.00022607,2]
[344626918,1733637040243,-3000.0,0.000227,2]
[344626919,1733637040252,-1000.0,0.000227,2]
[344626920,1733637040262,-600.0,0.000227,8]
[344626921,1733637040271,-352.93,0.00022765,2]
[344626922,1733637040280,-1000.0,0.00022769,2]
[344626923,1733637040289,-433.68,0.00022777,2]
[344626924,1733637040298,-30964.7794,0.00022798,2]
[344626925,1733637040308,-1000.0,0.00022798,2]
[344626926,1733637040317,-500.0,0.000228,2]
[344626927,1733637040326,-945.0,0.000228,8]
[344626928,1733637040335,-500.0,0.00022816,2]
[344626929,1733637040344,-420.0,0.00022829,2]
[344626930,1733637040354,-500.0,0.00022873,2]
[344626931,1733637040363,-317.656576,0.00022885,2]
[344626932,1733637040372,-156.99,0.0002289,2]
[344626933,1733637040381,-156.99,0.0002289,2]
[344626934,1733637040392,-156.99,0.0002289,2]
[344626935,1733637040402,-150.0,0.00022898,3]
[344626936,1733637040414,-150.0,0.00022898,3]
[344626937,1733637040423,-150.0,0.00022898,3]
[344626938,1733637040433,-150.0,0.00022898,3]
[344626939,1733637040442,-150.0,0.00022898,3]
[344626940,1733637040453,-150.0,0.00022898,3]
[344626941,1733637040463,-150.0,0.00022898,3]
[344626942,1733637040475,-150.0,0.00022898,2]
[344626943,1733637040485,-150.0,0.00022898,2]
[344626944,1733637040494,-150.0,0.00022898,2]
[344626945,1733637040504,-150.0,0.00022898,2]
[344626946,1733637040513,-150.0,0.00022898,2]
[344626947,1733637040523,-150.0,0.00022898,2]
[344626948,1733637040532,-150.0,0.00022898,2]
[344626949,1733637040543,-511.3389942,0.00022899,2]
[344626950,1733637040553,-402.61444235,0.00022899,2]
[344626951,1733637040563,-608.79190588,0.00022899,2]
[344626952,1733637040574,-506.027522,0.00022899,2]
[344626953,1733637040585,-503.80471258,0.00022899,2]
[344626954,1733637040595,-500.0,0.00022899,2]
[344626955,1733637040605,-504.95034176,0.00022899,2]
[344626956,1733637040614,-508.91532042,0.00022899,2]
[344626957,1733637040623,-515.9024943,0.00022899,2]
[344626958,1733637040632,-506.86206207,0.00022899,2]
[344626959,1733637040642,-503.07952123,0.00022899,2]
[344626960,1733637040651,-514.47541005,0.00022899,2]
[344626961,1733637040660,-504.0526508,0.00022899,2]
[344626962,1733637040669,-501.56223449,0.00022899,2]
[344626963,1733637040678,-580.05097365,0.00022899,2]
[344626964,1733637040687,-502.38891451,0.00022899,2]
[344626965,1733637040697,-505.53335942,0.00022899,2]
[344626966,1733637040706,-506.65069939,0.00022899,2]
[344626967,1733637040715,-502.37506009,0.00022899,2]
[344626968,1733637040724,-490.72481394,0.00022899,2]
[344626969,1733637040733,-609.05377563,0.00022899,2]
[344626970,1733637040742,-512.63149414,0.00022899,2]
[344626971,1733637040752,-508.1679138,0.00022899,2]
[344626972,1733637040761,-504.37621827,0.00022899,2]
[344626973,1733637040770,-507.97769111,0.00022899,2]
[344626974,1733637040779,-503.67064749,0.00022899,2]
[344626975,1733637040789,-506.67341837,0.00022899,2]
[344626976,1733637040798,-508.32689267,0.00022899,2]
[344626977,1733637040808,-504.01725707,0.00022899,2]
[344626978,1733637040817,-500.0,0.00022899,2]
[344626979,1733637040826,-502.19820581,0.00022899,2]
[344626980,1733637040835,-505.43889262,0.00022899,2]
[344626981,1733637040844,-506.5,0.00022899,2]
[344626982,1733637040855,-506.55687931,0.00022899,2]
[344626983,1733637040864,-237.38959366,0.00022899,2]
[344626984,1733637040874,-648.65048326,0.00022899,2]
[344626985,1733637040883,-200.17575837,0.00022899,2]
[344626986,1733637040893,-504.84663351,0.00022899,2]
[344626987,1733637040902,-513.1822928,0.00022899,2]
[344626988,1733637040911,-500.0,0.00022899,2]
[344626989,1733637040920,-500.0,0.00022899,2]
[344626990,1733637040930,-500.0,0.00022899,2]
[344626991,1733637040938,-501.8578238,0.00022899,2]
[344626992,1733637040947,-571.48816542,0.00022899,2]
[344626993,1733637040957,-1200.0,0.00022899,2]
[344626994,1733637040966,-3388.87796077,0.00022899,2]
[344626995,1733637040975,-566.56916862,0.00022899,2]
[344626996,1733637040984,-550.89121433,0.00022899,2]
[344626997,1733637040993,-500.0,0.00022899,2]
[344626998,1733637041002,-502.16803488,0.00022899,2]
[344626999,1733637041012,-500.0,0.00022899,2]
[344627000,1733637041021,-575.57997319,0.00022899,2]
[344627001,1733637041030,-500.0,0.00022899,2]
[344627002,1733637041039,-2500.0,0.000229,2]
[344627003,1733637041049,-74000.007,0.000229,2]
[344627004,1733637041058,-156.99,0.00022967,2]
[344627005,1733637041067,-500.0,0.00022976,2]
[344627006,1733637041075,-500.0,0.00022976,2]
[344627007,1733637041084,-500.0,0.00022976,2]
[344627008,1733637041093,-500.0,0.00022976,2]
[344627009,1733637041103,-500.0,0.00022976,2]
[344627010,1733637041112,-500.0,0.00022976,2]
[344627011,1733637041120,-500.0,0.00022976,2]
[344627012,1733637041130,-500.0,0.00022977,2]
[344627013,1733637041139,-500.0,0.00022977,2]
[344627014,1733637041148,-500.0,0.00022977,2]
[344627015,1733637041157,-500.0,0.00022977,2]
[344627016,1733637041166,-500.0,0.00022977,2]
[344627017,1733637041175,-500.0,0.00022977,2]
[344627018,1733637041185,-284.32604605,0.00022977,2]
[344627019,1733637041194,-500.0,0.00022977,2]
[344627020,1733637041203,-518.23123272,0.00022977,2]
[344627021,1733637041212,-517.54572014,0.00022977,2]
[344627022,1733637041221,-517.61314324,0.00022977,2]
[344627023,1733637041230,-344.38,0.00022977,2]
[344627024,1733637041239,-500.0,0.00022977,2]
[344627025,1733637041248,-534.23451324,0.00022977,2]
[344627026,1733637041257,-511.66115664,0.00022977,2]
[344627027,1733637041266,-533.83378727,0.00022977,2]
[344627028,1733637041275,-515.65633707,0.00022977,2]
[344627029,1733637041284,-521.66968293,0.00022977,2]
[344627030,1733637041293,-525.85213528,0.00022977,2]
[344627031,1733637041302,-511.92161313,0.00022977,2]
[344627032,1733637041311,-542.12671626,0.00022977,2]
[344627033,1733637041320,-528.00889272,0.00022977,2]
[344627034,1733637041330,-533.27535345,0.00022977,2]
[344627035,1733637041341,-3000.0,0.00022977,2]
[344627036,1733637041350,-206.59003034,0.00022977,2]
[344627037,1733637041359,-500.0,0.00022977,2]
[344627038,1733637041369,-501.75359751,0.00022977,2]
[344627039,1733637041378,-156.99,0.00022988,2]
[344627040,1733637041389,-156.99,0.00022988,2]
[344627041,1733637041399,-156.99,0.00022988,2]
[344627042,1733637041412,-156.99,0.00022988,2]
[344627043,1733637041422,-156.99,0.00022988,2]
[344627044,1733637041431,-156.99,0.00022988,2]
[344627045,1733637041441,-500.0,0.00022998,2]
[344627046,1733637041451,-1197.71,0.00022998,5]
[344627047,1733637041460,-309028.56624678,0.00022999,3]
[344627048,1733637041470,-22073.75560965,0.00022999,3]
[344627049,1733637041480,-500.0,0.00022999,2]
[344627050,1733637041490,-1938.85271186,0.00022999,2]
[344627051,1733637041499,-500.0,0.00022999,2]
[344627052,1733637041509,-501.42082626,0.00022999,2]
[344627053,1733637041518,-500.0,0.00022999,2]
[344627054,1733637041527,-500.0,0.00022999,2]
[344627055,1733637041536,-500.0,0.00022999,2]
[344627056,1733637041545,-500.0,0.00022999,2]
[344627057,1733637041554,-500.0,0.00022999,2]
[344627058,1733637041563,-500.0,0.00022999,2]
[344627059,1733637041572,-500.0,0.00022999,2]
[344627060,1733637041581,-500.0,0.00022999,2]
[344627061,1733637041591,-500.0,0.00022999,2]
[344627062,1733637041600,-500.0,0.00022999,2]
[344627063,1733637041608,-500.0,0.00022999,2]
[344627064,1733637041618,-500.0,0.00022999,2]
[344627065,1733637041627,-500.0,0.00022999,2]
[344627066,1733637041636,-500.0,0.00022999,2]
[344627067,1733637041647,-500.0,0.00022999,2]
[344627068,1733637041656,-500.0,0.00022999,2]
[344627069,1733637041665,-500.0,0.00022999,2]
[344627070,1733637041674,-500.0,0.00022999,2]
[344627071,1733637041684,-500.0,0.00022999,2]
[344627072,1733637041693,-500.0,0.00022999,2]
[344627073,1733637041703,-500.0,0.00022999,2]
[344627074,1733637041712,-500.0,0.00022999,2]
[344627075,1733637041725,-500.0,0.00022999,2]
[344627076,1733637041735,-500.0,0.00022999,2]
[344627077,1733637041744,-500.0,0.00022999,2]
[344627078,1733637041753,-500.0,0.00022999,2]
[344627079,1733637041762,-500.0,0.00022999,2]
[344627080,1733637041771,-500.0,0.00022999,2]
[344627081,1733637041781,-500.0,0.00022999,2]
[344627082,1733637041791,-500.0,0.00022999,2]
[344627083,1733637041800,-500.0,0.00022999,2]
[344627084,1733637041809,-463.54,0.00022999,2]
[344627085,1733637041819,-500.0,0.00022999,2]
[344627086,1733637041829,-500.0,0.00022999,2]
[344627087,1733637041838,-500.0,0.00022999,2]
[344627088,1733637041847,-500.0,0.00022999,2]
[344627089,1733637041857,-500.0,0.00022999,2]
[344627090,1733637041867,-607.59,0.00022999,2]
[344627091,1733637041876,-500.0,0.00022999,2]
[344627092,1733637041886,-500.0,0.00022999,2]
[344627093,1733637041897,-500.0,0.00022999,2]
[344627094,1733637041907,-500.0,0.00022999,2]
[344627095,1733637041918,-500.0,0.00022999,2]
[344627096,1733637041928,-500.0,0.00022999,2]
[344627097,1733637041938,-500.0,0.00022999,2]
[344627098,1733637041950,-225.18924952,0.00022999,2]
[344627099,1733637041960,-500.0,0.00022999,2]
[344627100,1733637041970,-500.0,0.00022999,2]
[344627101,1733637041980,-500.0,0.00022999,2]
[344627102,1733637041990,-500.0,0.00022999,2]
[344627103,1733637042001,-500.0,0.00022999,2]
[344627104,1733637042011,-500.0,0.00022999,2]
[344627105,1733637042021,-500.0,0.00022999,2]
[344627106,1733637042031,-513.0071499,0.00022999,2]
[344627107,1733637042042,-500.0,0.00022999,2]
[344627108,1733637042052,-500.0,0.00022999,2]
[344627109,1733637042063,-500.0,0.00022999,2]
[344627110,1733637042074,-500.0,0.00022999,2]
[344627111,1733637042083,-500.0,0.00022999,2]
[344627112,1733637042094,-500.0,0.00022999,2]
[344627113,1733637042104,-500.0,0.00022999,2]
[344627114,1733637042114,-500.0,0.00022999,2]
[344627115,1733637042123,-3000.0,0.00022999,2]
[344627116,1733637042133,-2820.9546317,0.00022999,2]
[344627117,1733637042144,-284.40419373,0.00022999,2]
[344627118,1733637042154,-500.0,0.00022999,2]
[344627119,1733637042163,-500.0,0.00022999,2]
[344627120,1733637042173,-500.0,0.00022999,2]
[344627121,1733637042183,-500.0,0.00022999,2]
[344627122,1733637042192,-500.0,0.00022999,2]
[344627123,1733637042202,-500.0,0.00022999,2]
[344627124,1733637042212,-607.16,0.00022999,2]
[344627125,1733637042221,-500.0,0.00022999,2]
[344627126,1733637042231,-180.72,0.00022999,2]
[344627127,1733637042241,-500.0,0.00022999,2]
[344627128,1733637042250,-500.0,0.00022999,2]
[344627129,1733637042260,-500.0,0.00022999,2]
[344627130,1733637042270,-500.0,0.00022999,2]
[344627131,1733637042280,-500.0,0.00022999,2]
[344627132,1733637042290,-500.0,0.00022999,2]
[344627133,1733637042299,-500.0,0.00022999,2]
[344627134,1733637042308,-500.0,0.00022999,2]
[344627135,1733637042318,-500.0,0.00022999,2]
[344627136,1733637042328,-500.0,0.00022999,2]
[344627137,1733637042338,-500.0,0.00022999,2]
[344627138,1733637042347,-227.92,0.00022999,2]
[344627139,1733637042357,-1197.71,0.00022999,5]
[344627140,1733637042367,-1197.71,0.00022999,5]
[344627141,1733637042377,-1197.71,0.00022999,5]
[344627142,1733637042387,-206.42072891,0.00022999,2]
[344627143,1733637042397,-1197.71,0.00022999,5]
[344627144,1733637042409,-1197.71,0.00022999,5]
[344627145,1733637042419,-1197.71,0.00022999,5]
[344627146,1733637042429,-1197.71,0.00022999,5]
[344627147,1733637042438,-1197.71,0.00022999,5]
[344627148,1733637042448,-1197.71,0.00022999,5]
[344627152,1733637042600,-1197.71,0.00022999,5]
[344627153,1733637042612,-1197.71,0.00022999,5]
[344627156,1733637042623,-1197.71,0.00022999,5]
[344627158,1733637042632,-1197.71,0.00022999,5]
[344627160,1733637042644,-1197.71,0.00022999,5]
[344627162,1733637042653,-1197.71,0.00022999,5]
[344627164,1733637042663,-1197.71,0.00022999,5]
[344627166,1733637042673,-1197.71,0.00022999,5]
[344627168,1733637042682,-1197.71,0.00022999,5]
[344627169,1733637042691,-1197.71,0.00022999,5]
[344627170,1733637042701,-1197.71,0.00022999,5]
[344627171,1733637042710,-1197.71,0.00022999,5]
[344627172,1733637042720,-1197.71,0.00022999,5]
[344627174,1733637042730,-1197.84108606,0.00022999,5]
[344627175,1733637042739,-2000.0,0.00022999,2]
[344627176,1733637042748,-892.0,0.00023,2]
[344627177,1733637042758,-3016.30309139,0.00023,2]
[344627178,1733637042767,-33358036.1455614,0.00023,3]
[344627179,1733637042777,-500.0,0.00023,3]
[344627180,1733637042787,-500.0,0.00023,3]